bitfinex-derivatives/quotes_SOLF0:USTF0_20250307
["timestamp","ask_amount","ask_price","bid_price","bid_amount"]
[1741355835675,8.1228,144.82,144.72,36.89023013]
[1741355835874,6.905,144.81,144.77,6.9063]
[1741355836174,8.1228,144.82,144.72,36.84]
[1741355836478,8.1228,144.82,144.72,40.7684]
[1741355836781,0.04583914,144.78,144.77,6.9066]
[1741355837072,36.84,144.88,144.77,65.66552476]
[1741355837377,48.491,144.88,144.77,65.66552476]
[1741355838076,0.05139411,144.84,144.83,6.9035]
[1741355838274,0.05139411,144.84,144.81,0.04455354]
[1741355838470,6.9028,144.85,144.8,6.9051]
[1741355838676,6.95159851,144.85,144.8,6.9051]
[1741355838872,0.04879851,144.85,144.81,0.0531356]
[1741355841072,36.8,144.84,144.72,3.9284]
[1741355841377,36.8,144.84,144.75,6.9073]
[1741355841378,28.82552476,144.83,144.75,6.9073]
[1741355841575,32.86082476,144.83,144.73,36.8]
[1741355841872,28.82552476,144.8,144.7,36.8]
[1741355842077,40.6176,144.79,144.7,36.8]
[1741355842274,0.04644274,144.76,144.74,0.04797608]
[1741355842773,6.9082,144.74,144.7,6.91]
[1741355842976,36.8,144.73,144.69,37.65088778]
[1741355843778,0.05214222,144.72,144.7,0.04932183]
[1741355844174,0.05214222,144.72,144.69,31.47018778]
[1741355844369,0.05214222,144.72,144.6,216.63272194]
[1741355844570,36.8,144.73,144.6,216.63272194]
[1741355844773,6.9119,144.66,144.62,6.9137]
[1741355844978,6.9119,144.66,144.6,9.41272194]
[1741355845378,0.04358571,144.64,144.62,0.04443857]
[1741355846478,0.04358571,144.64,144.6,9.41272194]
[1741355846880,6.9138,144.63,144.6,9.41272194]
[1741355847080,6.9138,144.63,144.54,28.82552476]
[1741355847081,36.78,144.63,144.54,28.82552476]
[1741355847280,36.78,144.63,144.53,36.78]
[1741355847483,36.78,144.63,144.52,9.41272194]
[1741355847673,0.04737714,144.59,144.57,0.0360299]
[1741355847983,0.04737714,144.59,144.52,9.41272194]
[1741355848185,36.8,144.58,144.52,9.41272194]
[1741355848380,28.82552476,144.53,144.48,208.53639804]
[1741355848583,36.8,144.52,144.48,140.10249953]
[1741355848774,6.9191,144.51,144.48,140.10249953]
[1741355849081,28.82552476,144.5,144.48,140.10249953]
[1741355849275,35.74512476,144.5,144.48,140.10249953]
[1741355849477,28.82552476,144.5,144.48,140.10249953]
[1741355849779,32.28552476,144.5,144.48,140.10249953]
[1741355850172,0.04437188,144.51,144.48,140.10249953]
[1741355850476,47.14969576,144.51,144.48,140.10249953]
[1741355850872,47.14969576,144.51,144.38,58.81942388]
[1741355851076,0.04437188,144.51,144.38,58.81942388]
[1741355851278,36.8,144.52,144.38,58.81942388]
[1741355851477,0.05217077,144.46,144.38,58.81942388]
[1741355851677,36.8,144.52,144.38,58.81942388]
[1741355851678,36.8,144.52,144.41,47.10532388]
[1741355851879,36.8,144.52,144.42,36.8]
[1741355852076,47.10532388,144.55,144.42,36.8]
[1741355852279,36.8,144.54,144.42,36.8]
[1741355852782,36.8,144.54,144.44,47.10532388]
[1741355852982,47.10532388,144.62,144.47,0.04575829]
[1741355852983,36.8,144.57,144.47,0.04575829]
[1741355853189,36.8,144.6,144.48,36.8]
[1741355853488,36.8,144.6,144.49,7.9669]
[1741355853876,36.8,144.6,144.44,47.10532388]
[1741355854083,47.10532388,144.56,144.44,47.10532388]
[1741355854384,36.8,144.55,144.44,47.10532388]
[1741355854585,0.05179652,144.53,144.51,0.04991866]
[1741355854774,0.05179652,144.53,144.51,6.9187]
[1741355854978,0.05179652,144.53,144.51,0.05001771]
[1741355855382,36.8,144.58,144.53,6.9181]
[1741355855581,36.8,144.58,144.51,0.05001771]
[1741355855782,36.8,144.58,144.47,83.90532388]
[1741355855978,47.10532388,144.61,144.47,83.90532388]
[1741355856281,36.78,144.6,144.5,47.10532388]
[1741355856485,0.04792491,144.55,144.54,6.9175]
[1741355856681,0.04792491,144.55,144.53,0.05014065]
[1741355856878,83.88532388,144.61,144.53,0.05014065]
[1741355857080,0.05078441,144.55,144.53,0.05014065]
[1741355857279,6.9161,144.58,144.53,0.05014065]
[1741355857487,83.88532388,144.61,144.53,0.05014065]
[1741355857686,0.05128676,144.55,144.53,0.05014065]
[1741355857886,83.88532388,144.61,144.53,0.05014065]
[1741355858187,36.78,144.61,144.53,0.05014065]
[1741355858382,0.04361682,144.58,144.53,0.05014065]
[1741355859886,0.04361682,144.58,144.52,3.82495555]
[1741355860689,0.04361682,144.58,144.55,6.9167]
[1741355861087,0.04361682,144.58,144.55,0.04883031]
[1741355862487,0.04361682,144.58,144.55,6.96573031]
[1741355862790,0.04361682,144.58,144.55,0.04883031]
[1741355863190,47.10532388,144.57,144.55,0.04883031]
[1741355863389,6.9167,144.56,144.55,0.04883031]
[1741355863787,36.80361682,144.58,144.55,0.04883031]
[1741355864188,0.04361682,144.58,144.55,0.04883031]
[1741355864688,6.95951682,144.58,144.55,0.04883031]
[1741355864890,0.04361682,144.58,144.55,0.04883031]
[1741355867888,0.04361682,144.58,144.56,6.9166]
[1741355868092,0.04361682,144.58,144.55,0.04883031]
[1741355868593,47.10532388,144.63,144.55,0.04883031]
[1741355868989,47.10532388,144.63,144.55,10.74353031]
[1741355869193,47.10532388,144.63,144.55,3.82653031]
[1741355869692,0.04886564,144.6,144.55,3.82653031]
[1741355870589,0.04886564,144.6,144.55,0.04883031]
[1741355871191,6.9154,144.59,144.55,6.96563031]
[1741355871396,0.04886564,144.6,144.55,0.04883031]
[1741355872096,0.04886564,144.6,144.59,6.9152]
[1741355872495,36.72,144.66,144.56,36.72]
[1741355872795,50.11401314,144.68,144.58,0.04452505]
[1741355872992,86.83401314,144.68,144.56,36.72]
[1741355873192,6.9118,144.67,144.63,6.9132]
[1741355873394,6.9118,144.67,144.56,36.72]
[1741355873594,0.0474465,144.63,144.6,0.04843023]
[1741355874398,0.0474465,144.63,144.62,6.9138]
[1741355874697,0.0474465,144.63,144.6,0.04843023]
[1741355875695,6.9141,144.62,144.6,0.04843023]
[1741355875993,0.0474465,144.63,144.6,0.04843023]
[1741355877402,0.0474465,144.63,144.61,6.9139]
[1741355878297,0.0474465,144.63,144.61,6.9143]
[1741355878593,112.83071671,144.69,144.6,0.04843023]
[1741355878799,112.83071671,144.69,144.64,6.9128]
[1741355878994,112.83071671,144.69,144.6,36.7]
[1741355878995,76.13071671,144.68,144.6,36.7]
[1741355879296,83.04191671,144.68,144.64,6.9125]
[1741355879598,76.13071671,144.68,144.6,36.7]
[1741355879796,6.9121,144.66,144.65,0.04411606]
[1741355880602,35.82924006,144.66,144.65,0.04411606]
[1741355881899,6.9121,144.66,144.65,0.04411606]
[1741355882100,0.0476658,144.67,144.65,0.04411606]
[1741355882296,6.9592658,144.67,144.65,0.04411606]
[1741355882503,0.0476658,144.67,144.65,0.04411606]
[1741355883105,0.0476658,144.67,144.66,6.9119]
[1741355883295,0.0476658,144.67,144.65,0.04411606]
[1741355884598,6.9119,144.66,144.65,0.04411606]
[1741355885400,35.82904006,144.66,144.65,0.04411606]
[1741355885597,6.9119,144.66,144.65,0.04411606]
[1741355886204,35.82904006,144.66,144.65,0.04411606]
[1741355887504,6.9136,144.63,144.59,7.9264]
[1741355887706,28.91714006,144.66,144.59,7.9264]
[1741355888096,6.9141,144.62,144.59,7.9264]
[1741355888296,28.91714006,144.66,144.59,7.9264]
[1741355888602,0.04925526,144.64,144.61,0.04809129]
[1741355889199,6.914,144.62,144.61,0.04809129]
[1741355889606,36.64,144.62,144.53,6.9178]
[1741355890108,76.62525805,144.62,144.54,28.91714006]
[1741355890308,83.53915805,144.62,144.59,6.9148]
[1741355890614,76.66975894,144.62,144.59,0.04666346]
[1741355891901,83.58385894,144.62,144.59,0.04666346]
[1741355892102,76.66975894,144.62,144.59,0.04666346]
[1741355892504,6.9147,144.6,144.59,0.04666346]
[1741355893111,0.04450089,144.62,144.59,0.04666346]
[1741355893410,6.9145,144.61,144.59,0.04666346]
[1741355893601,0.04450089,144.62,144.59,0.04666346]
[1741355894001,0.04450089,144.62,144.6,6.9145]
[1741355894506,0.04450089,144.62,144.59,0.04666346]
[1741355894701,6.95850089,144.62,144.59,0.04666346]
[1741355895103,0.04450089,144.62,144.59,0.04666346]
[1741355896010,6.9147,144.6,144.59,0.04666346]
[1741355896199,0.04450089,144.62,144.59,0.04666346]
[1741355897012,6.9146,144.61,144.59,0.04666346]
[1741355897202,0.04450089,144.62,144.59,0.04666346]
[1741355897605,6.9147,144.61,144.59,0.04666346]
[1741355897912,0.04450089,144.62,144.59,0.04666346]
[1741355898110,6.9147,144.6,144.59,0.04666346]
[1741355898510,0.04450089,144.62,144.59,0.04666346]
[1741355899112,0.04450089,144.62,144.61,6.9143]
[1741355900008,0.04450089,144.62,144.59,0.04666346]
[1741355900513,6.9145,144.61,144.59,0.04666346]
[1741355900705,0.04450089,144.62,144.59,0.04666346]
[1741355902507,6.9147,144.6,144.59,0.04666346]
[1741355904110,0.04450089,144.62,144.59,0.04666346]
[1741355905314,0.04450089,144.62,144.61,6.9143]
[1741355906017,97.82213113,144.65,144.6,4.0813]
[1741355906214,76.62525805,144.65,144.6,8.1265]
[1741355906616,76.62525805,144.65,144.6,4.0813]
[1741355907217,0.04407354,144.64,144.6,4.0813]
[1741355907510,0.04407354,144.64,144.59,0.04666346]
[1741355907511,28.9612136,144.64,144.59,0.04666346]
[1741355907716,6.9147,144.6,144.59,0.04666346]
[1741355907912,28.91714006,144.64,144.59,0.04666346]
[1741355908114,0.04678434,144.61,144.59,0.04666346]
[1741355909213,0.04678434,144.61,144.6,6.9147]
[1741355909418,76.62525805,144.66,144.59,0.04666346]
[1741355909613,76.62525805,144.64,144.59,0.04666346]
[1741355909819,76.62525805,144.64,144.62,6.9138]
[1741355910007,76.62525805,144.64,144.59,0.04666346]
[1741355910712,0.05244877,144.63,144.6,6.9145]
[1741355910913,0.05244877,144.63,144.59,0.04666346]
[1741355911315,0.05244877,144.63,144.62,6.9138]
[1741355911516,76.62525805,144.66,144.59,0.04666346]
[1741355911919,76.62525805,144.66,144.64,6.9127]
[1741355912118,76.62525805,144.66,144.57,28.91714006]
[1741355912322,76.62525805,144.66,144.65,6.9124]
[1741355912517,39.51525805,144.66,144.65,6.9124]
[1741355912717,136.50431525,144.67,144.63,28.91714006]
[1741355912920,136.50431525,144.67,144.66,6.9119]
[1741355913114,0.05021657,144.67,144.66,6.9119]
[1741355913419,76.85514013,144.69,144.64,0.04694628]
[1741355913615,76.85514013,144.69,144.68,6.9109]
[1741355915220,76.85514013,144.69,144.67,36.58723633]
[1741355915423,76.85514013,144.69,144.67,0.04723633]
[1741355916024,0.04829764,144.7,144.67,0.04723633]
[1741355917522,6.95869764,144.7,144.67,0.04723633]
[1741355918014,0.04829764,144.7,144.67,0.04723633]
[1741355920027,6.9109,144.68,144.67,0.04723633]
[1741355920220,0.04829764,144.7,144.67,0.04723633]
[1741355920522,0.04829764,144.7,144.6,36.48]
[1741355920723,7.5496,144.7,144.6,36.48]
[1741355921315,28.91714006,144.68,144.6,36.48]
[1741355921521,28.91714006,144.68,144.59,7.7688]
[1741355921719,0.05001539,144.65,144.63,0.0491755]
[1741355921922,6.9128,144.64,144.63,0.0491755]
[1741355924327,0.05001539,144.65,144.56,6.9165]
[1741355924626,28.91714006,144.65,144.55,207.4]
[1741355924827,28.91714006,144.65,144.54,11.4772]
[1741355925022,36.48,144.66,144.54,11.4772]
[1741355925627,0.04476178,144.61,144.59,0.05216231]
[1741355925824,6.9132,144.64,144.59,0.05216231]
[1741355926021,36.48,144.66,144.6,6.9144]
[1741355926022,0.04713868,144.61,144.6,6.9144]
[1741355926626,43.3706,144.69,144.59,28.96930237]
[1741355926833,7.5496,144.7,144.59,28.91714006]
[1741355927126,6.9098,144.71,144.65,6.912]
[1741355927334,6.9098,144.71,144.63,36.46]
[1741355927723,0.04719129,144.68,144.66,0.04647508]
[1741355928026,0.05319642,144.68,144.66,0.05082139]
[1741355928227,0.05319642,144.68,144.67,6.9114]
[1741355929234,6.9077,144.75,144.66,0.05082139]
[1741355929435,36.76134006,144.79,144.71,6.9092]
[1741355929636,36.44,144.78,144.68,36.44]
[1741355930335,36.44,144.78,144.68,6.9109]
[1741355930527,0.04535364,144.74,144.72,0.04437566]
[1741355930932,0.04535364,144.74,144.72,6.95327566]
[1741355931639,0.04535364,144.74,144.72,0.04437566]
[1741355932937,0.04535364,144.74,144.72,6.95307566]
[1741355933326,0.04535364,144.74,144.72,0.04437566]
[1741355934041,0.04535364,144.74,144.65,65.35714006]
[1741355934235,36.42,144.73,144.62,28.91714006]
[1741355934539,6.911,144.68,144.62,28.91714006]
[1741355934741,7.8776,144.72,144.62,36.42]
[1741355935136,6.9117,144.67,144.62,36.42]
[1741355935335,0.0479015,144.68,144.62,36.42]
[1741355935646,6.9128,144.64,144.63,0.04744343]
[1741355936440,6.9143,144.61,144.6,9.48511311]
[1741355937345,6.9143,144.61,144.56,6.9163]
[1741355937643,0.04569795,144.6,144.57,6.96066876]
[1741355938041,28.91714006,144.67,144.52,40.43304006]
[1741355938245,6.9157,144.59,144.57,0.04763106]
[1741355938547,36.4,144.63,144.52,76.83304006]
[1741355938749,0.04910184,144.59,144.57,0.04461462]
[1741355940340,6.9157,144.58,144.57,0.04461462]
[1741355940647,0.04910184,144.59,144.51,37.94045244]
[1741355941042,0.04910184,144.59,144.49,113.82135733]
[1741355941043,28.91714006,144.61,144.5,207.36]
[1741355941342,6.917,144.56,144.52,6.9183]
[1741355941644,65.31714006,144.58,144.47,57.64591311]
[1741355941841,6.9619689,144.55,144.53,0.0500115]
[1741355942749,0.0443689,144.55,144.53,0.0500115]
[1741355945443,6.9176,144.54,144.53,0.0500115]
[1741355945648,0.0443689,144.55,144.44,7.7428]
[1741355945844,7.4669,144.54,144.44,7.7428]
[1741355946053,28.91714006,144.53,144.44,7.7428]
[1741355946243,28.91714006,144.53,144.4,100.61996453]
[1741355946446,28.91714006,144.5,144.41,6.9235]
[1741355946650,36.38,144.49,144.41,6.9235]
[1741355946844,0.04822386,144.47,144.44,0.04381324]
[1741355947047,28.96536392,144.47,144.4,9.48511311]
[1741355947246,28.91714006,144.44,144.4,9.48511311]
[1741355947446,36.38,144.43,144.26,292.31422701]
[1741355947647,28.91714006,144.34,144.12,561.8094101]
[1741355947952,28.91714006,144.3,144.13,7.7337]
[1741355948151,28.91714006,144.27,144.14,28.91714006]
[1741355948353,36.38,144.26,144.13,11.4665]
[1741355948543,6.9315,144.25,144.24,0.04853915]
[1741355948743,28.91714006,144.3,144.15,28.91714006]
[1741355948946,36.38,144.29,144.18,28.91714006]
[1741355949151,0.05176356,144.26,144.23,0.04794277]
[1741355949345,36.38,144.29,144.23,0.04794277]
[1741355949547,65.29714006,144.35,144.23,0.04794277]
[1741355950044,5.57011331,144.34,144.24,28.91714006]
[1741355950655,36.38,144.35,144.29,62.0]
[1741355950656,0.04693271,144.3,144.29,62.0]
[1741355951051,36.4,144.3,144.29,62.0]
[1741355951253,36.4,144.3,144.28,0.04938469]
[1741355951254,36.4,144.3,144.28,8.469e-05]
[1741355951448,5.54617791,144.29,144.28,8.469e-05]
[1741355951856,0.05198077,144.31,144.28,8.469e-05]
[1741355952352,0.05198077,144.31,144.29,62.0]
[1741355952849,36.45198077,144.31,144.28,8.469e-05]
[1741355953051,83.64394035,144.31,144.28,8.469e-05]
[1741355953357,3.9825,144.3,144.28,8.469e-05]
[1741355953550,6.9296,144.29,144.28,8.469e-05]
[1741355953861,218.5336842,144.3,144.16,3.7547]
[1741355954055,47.19195958,144.28,144.16,3.7547]
[1741355954654,47.19195958,144.25,144.16,3.7547]
[1741355954854,36.4,144.24,144.12,47.19195958]
[1741355955053,0.04714911,144.22,144.19,0.04840819]
[1741355955756,0.04714911,144.22,144.16,27.62999526]
[1741355955957,133.65444872,144.24,144.2,62.0]
[1741355956158,133.65444872,144.21,144.2,62.0]
[1741355956361,127.46954872,144.21,144.2,62.0]
[1741355956655,127.46954872,144.21,144.07,207.78]
[1741355956861,127.46954872,144.21,144.09,47.19195958]
[1741355957062,47.19195958,144.19,144.06,47.19195958]
[1741355957355,0.04769561,144.15,144.02,36.4]
[1741355957556,47.19195958,144.05,143.92,47.19195958]
[1741355957764,47.19195958,144.02,143.87,47.19195958]
[1741355957959,3.7736,144.01,143.87,47.19195958]
[1741355958162,36.4,144.04,143.9,47.19195958]
[1741355958357,47.19195958,144.0,143.86,1.20904701]
[1741355958556,47.19195958,144.03,143.96,0.05277006]
[1741355958759,0.04375804,143.98,143.96,0.05277006]
[1741355959064,47.19195958,144.03,143.91,36.42]
[1741355959255,47.19195958,143.94,143.87,1.39014387]
[1741355959455,47.19195958,143.91,143.78,36.42]
[1741355959763,47.19195958,143.91,143.76,207.94]
[1741355960062,0.0510498,143.86,143.77,6.9546]
[1741355960366,0.0510498,143.86,143.74,36.4]
[1741355960562,47.19195958,143.87,143.75,62.0]
[1741355960757,47.19195958,143.84,143.75,62.0]
[1741355960954,47.19195958,143.92,143.76,47.19195958]
[1741355961160,3.7736,143.93,143.76,47.19195958]
[1741355961161,47.19195958,143.89,143.8,0.02068455]
[1741355961461,47.19195958,143.9,143.8,0.02068455]
[1741355961663,50.96555958,143.93,143.79,47.19195958]
[1741355961871,626.02966033,143.79,143.77,3.8395]
[1741355962058,547.61763504,143.79,143.78,6.9542]
[1741355962360,530.28775278,143.79,143.78,6.9542]
[1741355962564,494.89185278,143.79,143.78,10.4342]
[1741355962755,149.73623968,143.79,143.78,254.9942]
[1741355962960,123.11866407,143.79,143.78,302.18615958]
[1741355963162,75.62947211,143.85,143.84,6.9513]
[1741355963364,47.19195958,143.97,143.84,36.44]
[1741355963563,29.4453731,143.95,143.84,36.44]
[1741355963764,29.4453731,143.94,143.84,36.44]
[1741355963960,29.4453731,143.91,143.82,36.44]
[1741355964164,29.4453731,143.88,143.81,36.54]
[1741355964359,29.4453731,143.86,143.64,47.19195958]
[1741355964566,47.19195958,143.85,143.73,36.6]
[1741355964760,29.4453731,143.82,143.78,0.05337022]
[1741355964961,22.49536407,143.83,143.78,0.05337022]
[1741355965173,0.05330794,143.8,143.78,0.05337022]
[1741355965470,47.19195958,143.94,143.79,36.64]
[1741355965668,29.4453731,143.93,143.82,47.19195958]
[1741355965872,29.4453731,143.94,143.85,47.19195958]
[1741355966071,29.4453731,143.87,143.8,245.14]
[1741355966371,6.95000903,143.87,143.75,37.02]
[1741355966673,29.4453731,143.82,143.74,208.22]
[1741355966873,29.4453731,143.8,143.74,208.22]
[1741355967071,6.95000903,143.81,143.74,245.36]
[1741355967272,22.49536407,143.81,143.8,0.04834675]
[1741355967465,43.3653731,143.81,143.8,0.04834675]
[1741355967663,0.05196194,143.78,143.68,208.3]
[1741355967874,29.4453731,143.74,143.62,208.3]
[1741355968065,84.43195958,143.79,143.64,47.19195958]
[1741355968266,29.4453731,143.73,143.65,1.39227288]
[1741355968676,20.87000903,143.73,143.68,6.9589]
[1741355968872,20.87000903,143.73,143.65,1.39227288]
[1741355969075,6.95000903,143.71,143.65,1.39227288]
[1741355969378,6.95000903,143.7,143.65,1.39227288]
[1741355969576,3.9033,143.78,143.65,1.39227288]
[1741355969781,8.87e-06,143.69,143.67,0.05203502]
[1741355969971,6.95000903,143.77,143.68,39.01198218]
[1741355970167,22.49536407,143.82,143.73,47.19195958]
[1741355970467,6.95000903,143.82,143.74,246.04]
[1741355970670,11.7886,143.9,143.74,246.04]
[1741355970871,6.95000903,143.86,143.8,47.19195958]
[1741355971068,6.95000903,143.87,143.81,37.92]
[1741355971265,0.04377687,143.84,143.78,37.9]
[1741355971467,6.95000903,143.83,143.78,37.9]
[1741355971668,0.04377687,143.84,143.83,7.00029326]
[1741355971879,7.687e-05,143.84,143.83,7.00029326]
[1741355972078,43.36544997,143.84,143.74,193.0]
[1741355972268,7.687e-05,143.84,143.77,47.19195958]
[1741355972668,47.19195958,143.93,143.8,47.19195958]
[1741355972866,6.95000903,143.89,143.8,47.19195958]
[1741355973071,0.0471619,143.88,143.85,0.04864932]
[1741355973279,6.95000903,143.87,143.86,38.28]
[1741355973478,58.98055958,143.96,143.86,38.28]
[1741355973783,6.95000903,143.92,143.86,38.28]
[1741355973972,6.95000903,143.89,143.86,38.28]
[1741355974176,0.04919895,143.88,143.86,38.28]
[1741355974677,6.95000903,143.87,143.85,0.04967277]
[1741355974982,0.04394744,143.88,143.85,0.04967277]
[1741355975279,4.744e-05,143.88,143.85,0.04967277]
[1741355975481,4.744e-05,143.88,143.87,6.9498]
[1741355975676,4.744e-05,143.88,143.87,254.1298]
[1741355976078,4.744e-05,143.88,143.87,450.6098]
[1741355976282,4.744e-05,143.88,143.87,451.99994387]
[1741355976483,63.45389844,144.02,143.91,47.19195958]
[1741355976677,6.95000903,143.95,143.92,38.98]
[1741355977085,6.95000903,143.93,143.88,39.0]
[1741355977279,6.95000903,143.94,143.88,86.19195958]
[1741355977475,9.03e-06,143.94,143.93,6.9467]
[1741355977787,63.45389844,144.02,143.93,39.02]
[1741355977975,22.49536407,143.98,143.93,39.02]
[1741355978184,4.709e-05,143.95,143.93,39.02]
[1741355978377,77.37389844,144.02,143.94,47.19195958]
[1741355978577,63.45389844,144.02,144.01,6.9431]
[1741355978778,63.45389844,144.02,144.01,45.9231]
[1741355979387,52.99059844,144.02,144.01,45.9231]
[1741355979588,66.91059844,144.02,144.0,208.48593617]
[1741355979777,52.99059844,144.02,144.0,208.48593617]
[1741355980083,0.04543709,144.03,144.01,6.9431]
[1741355980289,13.96543709,144.03,144.0,208.48593617]
[1741355980784,13.96543709,144.03,144.0,0.04593617]
[1741355981083,22.49536407,144.01,144.0,6.98953617]
[1741355981382,22.49536407,144.02,144.0,0.04593617]
[1741355981782,0.04543709,144.03,144.02,6.9426]
[1741355981982,3.709e-05,144.03,144.02,6.9426]
[1741355982179,3.709e-05,144.03,144.0,0.04593617]
[1741355982380,13.92003709,144.03,144.0,0.04593617]
[1741355982788,7.8359,144.09,144.0,0.04593617]
[1741355983084,10.85763709,144.09,143.99,38.82]
[1741355983290,22.49536407,144.03,143.99,38.82]
[1741355983482,22.49536407,144.02,143.99,38.82]
[1741355983790,22.49536407,144.03,143.99,38.82]
[1741355983991,22.49536407,144.03,144.02,6.9426]
[1741355984183,3.02173709,144.03,143.99,38.86668254]
[1741355984388,0.04904405,144.02,143.99,38.86668254]
[1741355984687,22.49536407,144.05,143.95,193.0]
[1741355984895,22.49536407,144.01,143.99,0.05264621]
[1741355985282,3.02173709,144.01,143.99,0.05264621]
[1741355985487,0.05308763,144.02,143.99,0.05264621]
[1741355985687,3.07482472,144.02,143.99,0.05264621]
[1741355986095,0.05308763,144.02,143.99,0.05264621]
[1741355986390,0.05308763,144.02,144.01,6.9431]
[1741355987085,8.763e-05,144.02,144.01,6.9431]
[1741355987280,8.763e-05,144.02,144.01,45.7231]
[1741355987882,8.763e-05,144.02,144.01,96.39505958]
[1741355988086,279.82129444,144.1,144.01,89.45195958]
[1741355988289,279.82129444,144.1,144.09,6.9392]
[1741355990792,279.82129444,144.1,144.08,0.04976911]
[1741355991196,22.49536407,144.09,144.08,0.04976911]
[1741355991590,25.51710116,144.09,144.08,0.04976911]
[1741355991799,25.51710116,144.09,144.02,209.72869601]
[1741355991989,22.49536407,144.07,144.02,209.72869601]
[1741355992297,279.82129444,144.1,144.02,209.72869601]
[1741355992596,279.82129444,144.1,144.04,47.19195958]
[1741355992797,279.82129444,144.1,144.07,6.9398]
[1741355993000,279.82129444,144.1,144.07,38.52]
[1741355993192,0.04566494,144.08,144.07,38.52]
[1741355993891,0.04566494,144.08,144.07,45.4602]
[1741355994089,0.04566494,144.08,144.07,38.52]
[1741355994389,0.04566494,144.08,144.06,0.05112393]
[1741355994688,25.5627661,144.08,144.06,0.05112393]
[1741355995098,0.04566494,144.08,144.06,0.05112393]
[1741355995399,0.04566494,144.08,144.07,6.9402]
[1741355996999,6.494e-05,144.08,144.07,10.4202]
[1741355997185,6.494e-05,144.08,144.07,6.9402]
[1741355998796,6.494e-05,144.08,144.07,57.61215958]
[1741355999203,6.494e-05,144.08,144.07,6.9402]
[1741355999998,6.494e-05,144.08,144.07,57.61215958]
[1741356000702,6.494e-05,144.08,144.07,6.9402]
[1741356001196,6.494e-05,144.08,144.07,44.9202]
[1741356001710,6.494e-05,144.08,144.07,95.59215958]
[1741356002099,65.85968937,145.71,144.17,6.9353]
[1741356002100,47.19195958,144.24,144.17,6.9353]
[1741356002296,47.19195958,144.21,144.12,208.2]
[1741356002599,22.49536407,144.17,144.12,208.2]
[1741356002803,22.49536407,144.16,144.12,208.2]
[1741356003004,22.49536407,144.15,144.12,246.26]
[1741356003191,22.49536407,144.15,144.13,6.9372]
[1741356003507,5.79929686,144.15,144.12,246.28909168]
[1741356003696,5.79929686,144.15,144.14,6.9368]
[1741356004005,0.04936055,144.15,144.14,6.9368]
[1741356004591,6.055e-05,144.15,144.14,6.9368]
[1741356005105,6.055e-05,144.15,144.14,10.3968]
[1741356005497,6.055e-05,144.15,144.13,47.19195958]
[1741356005894,6.055e-05,144.15,144.13,50.65195958]
[1741356006292,6.055e-05,144.15,144.13,290.84391916]
[1741356006497,6.055e-05,144.15,144.14,1.38753989]
[1741356007101,6.055e-05,144.15,144.14,39.34753989]
[1741356008797,6.055e-05,144.15,144.14,42.80753989]
[1741356008997,6.055e-05,144.15,144.14,39.34753989]
[1741356009197,6.055e-05,144.15,144.14,101.34753989]
[1741356009407,6.055e-05,144.15,144.14,104.80753989]
[1741356009801,6.055e-05,144.15,144.14,101.34753989]
[1741356010002,6.055e-05,144.15,144.14,104.80753989]
[1741356010304,8.0388,144.24,144.14,104.80753989]
[1741356010504,3.9643,144.24,144.19,47.19195958]
[1741356010704,3.9643,144.24,144.2,38.18]
[1741356011099,7.6436,144.28,144.2,38.18]
[1741356011309,22.49536407,144.25,144.2,38.18]
[1741356011609,0.04811921,144.25,144.23,0.04871878]
[1741356013313,3.8015,144.32,144.25,47.19195958]
[1741356013507,3.8015,144.32,144.26,38.0]
[1741356013705,7.9696,144.35,144.26,38.0]
[1741356013910,22.49536407,144.33,144.26,38.0]
[1741356014512,0.04542021,144.31,144.28,47.24034382]
[1741356016415,3.8015,144.38,144.28,50.70034382]
[1741356016713,7.791,144.41,144.32,47.19195958]
[1741356016908,22.49536407,144.39,144.33,245.82]
[1741356017105,22.49536407,144.37,144.33,245.82]
[1741356017308,7.791,144.41,144.35,47.19195958]
[1741356017507,4.0328,144.47,144.38,47.19195958]
[1741356017702,22.49536407,144.44,144.39,37.82]
[1741356018014,22.49536407,144.39,144.34,47.19195958]
[1741356018214,22.49536407,144.38,144.35,37.84]
[1741356018513,22.54016183,144.38,144.35,0.04700096]
[1741356018702,25.56189892,144.38,144.35,0.04700096]
[1741356018904,3.06653485,144.38,144.34,31.6184]
[1741356019107,22.49536407,144.35,144.34,19.2556]
[1741356019317,22.49536407,144.35,144.33,207.98]
[1741356019509,22.49536407,144.34,144.33,207.98]